[Event "FIDE WSTC Open 50 2025"]
[Site "Prague"]
[Date "2025.02.17"]
[Round "1.17"]
[White "Turebayeva, Alfiya"]
[Black "Kotsur, Pavel"]
[Result "0-1"]
[Annotator "ChessBase"]
[ECO "C77"]
[WhiteElo "2019"]
[BlackElo "2478"]
[PlyCount "168"]
[EventDate "2025.02.17"]
[EventType "team-tourn"]
[EventCountry "CZE"]
[SourceTitle "playchess.com"]
[Source "ChessBase"]
[SourceQuality "1"]
[TimeControl "40/5400+30:1800+30"]

1. e4 {[%emt 0:00:03]} e5 {[%emt 0:00:06]} 2. Nf3 {[%emt 0:00:45]} Nc6 {[%emt 0:00:04]} 3. Bb5 {[%emt 0:01:53]} a6 {[%emt 0:00:16]} 4. Ba4 {[%emt 0:00:05]} Nf6 {[%emt 0:00:04]} 5. d3 {[%emt 0:00:19]} d6 {[%emt 0:00:28]} 6. c3 {[%emt 0:00:15]} g6 {[%emt 0:00:23]} 7. O-O {[%emt 0:01:24]} Bg7 {[%emt 0:01:15]} 8. Re1 {[%emt 0:01:12]} O-O {[%emt 0:00:19]} 9. Nbd2 {[%emt 0:01:08]} Bd7 {[%emt 0:01:08]} 10. d4 {[%emt 0:08:38]} Qe8 {[%emt 0:00:41]} 11. d5 {[%emt 0:02:24]} Nb8 {[%emt 0:00:30]} 12. Bb3 {[%emt 0:01:08]} h6 {[%emt 0:00:44]} 13. Nf1 {[%emt 0:05:44]} a5 {[%emt 0:00:34]} 14. Ng3 {[%emt 0:02:53]} Na6 {[%emt 0:01:26]} 15. Be3 {[%emt 0:01:50]} Ng4 {[%emt 0:06:53]} 16. Bd2 {[%emt 0:01:14]} f5 {[%emt 0:01:02]} 17. exf5 {[%emt 0:00:46]} gxf5 {[%emt 0:00:05]} 18. h3 {[%emt 0:09:40]} Nf6 {[%emt 0:02:24]} 19. Nh4 {[%emt 0:08:03]} Nh7 {[%emt 0:07:38]} 20. Nh5 {[%emt 0:04:07]} Qf7 {[%emt 0:01:44]} 21. Nxg7 {[%emt 0:01:41]} Qxg7 {[%emt 0:00:44]} 22. Qh5 {[%emt 0:05:10]} f4 {[%emt 0:00:51]} 23. Qg6 {[%emt 0:01:07]} Rf7 {[%emt 0:03:41]} 24. Bc2 {[%emt 0:02:43]} Ng5 {[%emt 0:02:28]} 25. b4 {[%emt 0:08:39]} axb4 {[%emt 0:06:12]} 26. cxb4 {[%emt 0:00:04]} f3 {[%emt 0:00:09]} 27. Bxg5 {[%emt 0:02:37]} hxg5 {[%emt 0:00:24]} 28. Nxf3 {[%emt 0:02:30]} Nxb4 {[%emt 0:00:58]} 29. Qxg7+ {[%emt 0:00:37]} Rxg7 {[%emt 0:00:53]} 30. Bb3 {[%emt 0:01:56]} Ba4 {[%emt 0:04:30]} 31. Re3 {[%emt 0:11:23]} b6 {[%emt 0:01:47]} 32. Rd1 {[%emt 0:01:47]} Nxa2 {[%emt 0:05:27]} 33. Ra1 {[%emt 0:02:53]} Bxb3 {[%emt 0:00:10]} 34. Rxb3 {[%emt 0:00:01]} Ra5 {[%emt 0:04:29]} 35. Nd2 {[%emt 0:03:49]} Nb4 {[%emt 0:01:09]} 36. Rxa5 {[%emt 0:00:26]} bxa5 {[%emt 0:00:01]} 37. Ne4 {[%emt 0:00:52]} Nxd5 {[%emt 0:01:19]} 38. Rb5 {[%emt 0:00:11]} Nf4 {[%emt 0:01:47]} 39. Rxa5 {[%emt 0:00:14]} Kf7 {[%emt 0:00:27]} 40. Ra7 {[%emt 0:02:50]} Ke6 {[%emt 0:00:54]} 41. f3 {[%emt 0:30:23]} Nd5 {[%emt 0:31:21]} 42. Kf2 {[%emt 0:00:58]} Nf6 {[%emt 0:00:07]} 43. Ke3 {[%emt 0:01:21]} Nd5+ {[%emt 0:06:14]} 44. Kf2 {[%emt 0:00:10]} Nb6 {[%emt 0:00:29]} 45. Nc3 {[%emt 0:01:47]} Kd7 {[%emt 0:03:01]} 46. Ra5 {[%emt 0:00:00]} Rg8 {[%emt 0:00:00]} 47. Ne4 {[%emt 0:00:00]} Ke6 {[%emt 0:00:00]} 48. Ra7 {[%emt 0:00:00]} Nd5 {[%emt 0:00:00]} 49. Ra5 {[%emt 0:00:00]} Nf6 {[%emt 0:00:00]} 50. Ra6 {[%emt 0:00:00]} Nxe4+ {[%emt 0:00:00]} 51. fxe4 {[%emt 0:00:00]} Rf8+ {[%emt 0:00:00]} 52. Ke3 {[%emt 0:00:00]} Rb8 {[%emt 0:00:00]} 53. Ra7 {[%emt 0:00:00]} Rb3+ {[%emt 0:05:22]} 54. Ke2 {[%emt 0:00:00]} Rc3 {[%emt 0:05:04]} 55. Ra8 {[%emt 0:00:00]} g4 {[%emt 0:00:43]} 56. hxg4 {[%emt 0:00:00]} Rg3 {[%emt 0:00:11]} 57. Re8+ {[%emt 0:00:00]} Kf7 {[%emt 0:03:46]} 58. Rc8 {[%emt 0:00:00]} Rxg2+ {[%emt 0:00:10]} 59. Kd3 {[%emt 0:00:00]} Rg3+ {[%emt 0:01:09]} 60. Kd2 {[%emt 0:00:46]} c5 {[%emt 0:00:29]} 61. Rc7+ {[%emt 0:01:38]} Ke6 {[%emt 0:01:50]} 62. Rg7 {[%emt 0:00:19]} c4 {[%emt 0:02:53]} 63. g5 {[%emt 0:00:22]} c3+ {[%emt 0:00:55]} 64. Kc2 {[%emt 0:00:13]} Re3 {[%emt 0:00:46]} 65. Rg6+ {[%emt 0:03:43]} Kd7 {[%emt 0:00:15]} 66. Rg7+ {[%emt 0:00:32]} Kc6 {[%emt 0:00:04]} 67. g6 {[%emt 0:00:23]} Kc5 {[%emt 0:03:36]} 68. Rd7 {[%emt 0:01:44]} Rxe4 {[%emt 0:00:31]} 69. Kxc3 {[%emt 0:00:17]} Rg4 {[%emt 0:00:18]} 70. g7 {[%emt 0:00:07]} d5 {[%emt 0:00:26]} 71. Rc7+ {[%emt 0:00:20]} Kd6 72. Ra7 {[%emt 0:00:09]} Rg3+ {[%emt 0:00:13]} 73. Kd2 {[%emt 0:00:07]} Ke6 {[%emt 0:01:32]} 74. Ra6+ {[%emt 0:02:27]} Kf5 {[%emt 0:00:10]} 75. Ra5 {[%emt 0:01:51]} d4 {[%emt 0:00:25]} 76. Ra7 {[%emt 0:00:59]} Kf6 {[%emt 0:00:07]} 77. Ra6+ {[%emt 0:01:21]} Kxg7 {[%emt 0:00:05]} 78. Re6 {[%emt 0:00:14]} Rg5 {[%emt 0:00:32]} 79. Kd3 {[%emt 0:00:15]} Kf7 {[%emt 0:00:04]} 80. Ra6 {[%emt 0:00:07]} Rg6 {[%emt 0:00:10]} 81. Ra5 {[%emt 0:00:42]} Ke6 {[%emt 0:00:06]} 82. Kc4 {[%emt 0:02:10]} Rg8 {[%emt 0:00:57]} 83. Ra6+ {[%emt 0:00:49]} Kf5 {[%emt 0:00:05]} 84. Rd6 {[%emt 0:00:30]} Ke4 {[%emt 0:00:11]} 0-1

[Event "FIDE WSTC Open 50 2025"]
[Site "Prague"]
[Date "2025.02.17"]
[Round "1.18"]
[White "Temirbayev, Serikbay"]
[Black "Bulanova, Irina"]
[Result "1-0"]
[Annotator "ChessBase"]
[ECO "D30"]
[WhiteElo "2372"]
[BlackElo "1937"]
[PlyCount "41"]
[EventDate "2025.02.17"]
[EventType "team-tourn"]
[EventCountry "CZE"]
[SourceTitle "playchess.com"]
[Source "ChessBase"]
[SourceQuality "1"]
[TimeControl "40/5400+30:1800+30"]

1. d4 {[%emt 0:00:05]} d5 {[%emt 0:00:05]} 2. c4 {[%emt 0:00:19]} e6 {[%emt 0:00:05]} 3. Nf3 {[%emt 0:00:33]} c5 {[%emt 0:00:25]} 4. cxd5 {[%emt 0:00:50]} exd5 {[%emt 0:00:06]} 5. g3 {[%emt 0:02:14]} Nc6 {[%emt 0:01:35]} 6. Bg2 {[%emt 0:02:46]} Nf6 {[%emt 0:00:31]} 7. O-O {[%emt 0:01:36]} cxd4 {[%emt 0:02:33]} 8. Nxd4 {[%emt 0:00:38]} Bc5 {[%emt 0:00:28]} 9. Nxc6 {[%emt 0:04:36]} bxc6 {[%emt 0:00:29]} 10. Qc2 {[%emt 0:00:25]} Bb6 {[%emt 0:06:32]} 11. Qxc6+ {[%emt 0:02:44]} Bd7 {[%emt 0:00:36]} 12. Qd6 {[%emt 0:02:52]} Bc7 {[%emt 0:13:30]} 13. Qa3 {[%emt 0:00:50]} Bc6 {[%emt 0:22:50]} 14. Bg5 {[%emt 0:06:05]} Bd6 {[%emt 0:04:57]} 15. Qe3+ {[%emt 0:02:19]} Kf8 {[%emt 0:04:08]} 16. Nc3 {[%emt 0:07:59]} h6 {[%emt 0:14:53]} 17. Bxf6 {[%emt 0:02:24]} Qxf6 {[%emt 0:00:05]} 18. Rad1 {[%emt 0:02:27]} g6 {[%emt 0:10:24]} 19. Bxd5 {[%emt 0:01:32]} Bxd5 {[%emt 0:05:22]} 20. Rxd5 {[%emt 0:02:11]} Rb8 {[%emt 0:00:40]} 21. Ne4 {[%emt 0:00:16]} 1-0

[Event "FIDE WSTC Open 50 2025"]
[Site "Prague"]
[Date "2025.02.17"]
[Round "1.19"]
[White "Son, Asya"]
[Black "Tikzhanov, Yerlan"]
[Result "0-1"]
[Annotator "ChessBase"]
[ECO "C03"]
[WhiteElo "2097"]
[BlackElo "2323"]
[PlyCount "64"]
[EventDate "2025.02.17"]
[EventType "team-tourn"]
[EventCountry "CZE"]
[SourceTitle "playchess.com"]
[Source "ChessBase"]
[SourceQuality "1"]
[TimeControl "40/5400+30:1800+30"]

1. e4 {[%emt 0:00:03]} e6 {[%emt 0:00:11]} 2. d4 {[%emt 0:00:19]} d5 {[%emt 0:00:05]} 3. Nd2 {[%emt 0:00:24]} a6 {[%emt 0:00:12]} 4. Ngf3 {[%emt 0:04:29]} c5 {[%emt 0:00:10]} 5. exd5 {[%emt 0:01:23]} exd5 {[%emt 0:00:11]} 6. Bd3 {[%emt 0:03:30]} c4 {[%emt 0:01:15]} 7. Be2 {[%emt 0:01:04]} Nf6 {[%emt 0:00:22]} 8. O-O {[%emt 0:09:40]} Bd6 {[%emt 0:03:14]} 9. c3 {[%emt 0:04:13]} Nc6 {[%emt 0:01:53]} 10. b3 {[%emt 0:00:51]} b5 {[%emt 0:00:37]} 11. a4 {[%emt 0:05:45]} Bb7 {[%emt 0:00:16]} 12. Ba3 {[%emt 0:02:26]} O-O {[%emt 0:01:21]} 13. Bxd6 {[%emt 0:02:37]} Qxd6 {[%emt 0:00:07]} 14. b4 {[%emt 0:01:12]} Rae8 {[%emt 0:04:45]} 15. Re1 {[%emt 0:04:43]} Ne4 {[%emt 0:08:35]} 16. Qc2 {[%emt 0:02:22]} Re7 {[%emt 0:02:36]} 17. Nf1 {[%emt 0:06:05]} Rfe8 {[%emt 0:04:41]} 18. Ng3 {[%emt 0:06:34]} g6 {[%emt 0:00:53]} 19. Bf1 {[%emt 0:09:13]} f5 {[%emt 0:15:39]} 20. axb5 {[%emt 0:01:05]} axb5 {[%emt 0:00:06]} 21. Qc1 {[%emt 0:04:14]} f4 {[%emt 0:03:17]} 22. Ne2 {[%emt 0:01:34]} g5 {[%emt 0:01:03]} 23. g3 {[%emt 0:07:50]} Rf8 {[%emt 0:03:35]} 24. g4 {[%emt 0:05:32]} Bc8 {[%emt 0:05:38]} 25. h3 {[%emt 0:00:19]} h5 {[%emt 0:00:22]} 26. gxh5 {[%emt 0:06:05]} Qh6 {[%emt 0:03:21]} 27. Ra8 {[%emt 0:04:50]} Qxh5 {[%emt 0:00:47]} 28. Ne5 {[%emt 0:00:55]} Nxe5 {[%emt 0:02:46]} 29. dxe5 {[%emt 0:00:02]} Bxh3 {[%emt 0:00:15]} 30. Rxf8+ {[%emt 0:00:05]} Kxf8 {[%emt 0:00:04]} 31. Bxh3 {[%emt 0:03:35]} Qxh3 {[%emt 0:00:08]} 32. Nd4 {[%emt 0:02:07]} Rh7 {[%emt 0:00:26]} 0-1

[Event "FIDE WSTC Open 50 2025"]
[Site "Prague"]
[Date "2025.02.17"]
[Round "1.20"]
[White "Min, Valeriy"]
[Black "Gaichenya, Yelena"]
[Result "1-0"]
[Annotator "ChessBase"]
[ECO "A05"]
[WhiteElo "2273"]
[BlackElo "1990"]
[PlyCount "79"]
[EventDate "2025.02.17"]
[EventType "team-tourn"]
[EventCountry "CZE"]
[SourceTitle "playchess.com"]
[Source "ChessBase"]
[SourceQuality "1"]
[TimeControl "40/5400+30:1800+30"]

1. Nf3 {[%emt 0:00:07]} Nf6 {[%emt 0:00:49]} 2. c4 {[%emt 0:00:12]} c5 {[%emt 0:01:22]} 3. g3 {[%emt 0:00:21]} Nc6 {[%emt 0:01:26]} 4. Bg2 {[%emt 0:01:30]} d6 {[%emt 0:00:59]} 5. d4 {[%emt 0:00:49]} cxd4 {[%emt 0:03:09]} 6. Nxd4 {[%emt 0:00:10]} Bd7 {[%emt 0:00:37]} 7. Nc3 {[%emt 0:02:11]} g6 {[%emt 0:02:47]} 8. Nc2 {[%emt 0:01:42]} Bg7 {[%emt 0:01:13]} 9. O-O {[%emt 0:00:39]} O-O {[%emt 0:00:05]} 10. b3 {[%emt 0:09:09]} Qc8 {[%emt 0:11:23]} 11. Re1 {[%emt 0:06:40]} Bh3 {[%emt 0:01:21]} 12. Bb2 {[%emt 0:15:08]} Bxg2 {[%emt 0:03:33]} 13. Kxg2 {[%emt 0:00:02]} Ne4 {[%emt 0:03:48]} 14. Na4 {[%emt 0:05:43]} Bxb2 {[%emt 0:05:55]} 15. Nxb2 {[%emt 0:00:14]} Qf5 {[%emt 0:02:44]} 16. Nd3 {[%emt 0:02:18]} Ng5 {[%emt 0:16:20]} 17. f3 {[%emt 0:15:00]} e5 {[%emt 0:07:07]} 18. Nf2 {[%emt 0:03:39]} Rad8 {[%emt 0:05:27]} 19. Ne3 {[%emt 0:12:19]} Qd7 {[%emt 0:00:57]} 20. Qd2 {[%emt 0:00:42]} f5 {[%emt 0:01:07]} 21. Nd5 {[%emt 0:01:47]} Ne6 {[%emt 0:00:33]} 22. e3 {[%emt 0:00:41]} Qf7 {[%emt 0:04:41]} 23. Rad1 {[%emt 0:01:27]} f4 {[%emt 0:00:51]} 24. exf4 {[%emt 0:01:13]} exf4 {[%emt 0:00:16]} 25. Ng4 {[%emt 0:01:11]} Kh8 {[%emt 0:03:26]} 26. Rxe6 {[%emt 0:01:16]} Qxe6 {[%emt 0:00:28]} 27. Qc3+ {[%emt 0:01:00]} Ne5 {[%emt 0:00:51]} 28. gxf4 {[%emt 0:00:08]} h5 {[%emt 0:02:20]} 29. Nf2 {[%emt 0:01:22]} Kg8 {[%emt 0:05:45]} 30. fxe5 {[%emt 0:00:29]} dxe5 {[%emt 0:00:33]} 31. Ne4 {[%emt 0:04:44]} Kg7 {[%emt 0:01:43]} 32. Re1 {[%emt 0:00:47]} Rfe8 {[%emt 0:06:38]} 33. h4 {[%emt 0:00:23]} Qf5 {[%emt 0:00:38]} 34. Ng5 {[%emt 0:00:25]} Kg8 {[%emt 0:01:02]} 35. Re4 {[%emt 0:00:33]} Rd7 {[%emt 0:02:05]} 36. Qa5 {[%emt 0:01:51]} b6 {[%emt 0:00:19]} 37. Qb5 {[%emt 0:00:29]} Kg7 {[%emt 0:00:58]} 38. Qc6 {[%emt 0:00:59]} Rdd8 {[%emt 0:00:11]} 39. Kg3 {[%emt 0:00:35]} Rd7 {[%emt 0:01:08]} 40. Ne3 {[%emt 0:00:40]} 1-0

[Event "FIDE WSTC Open 50 2025"]
[Site "Prague"]
[Date "2025.02.17"]
[Round "1.21"]
[White "Mrva, Martin"]
[Black "Klimaszewski, Dariusz"]
[Result "1-0"]
[Annotator "ChessBase"]
[ECO "E73"]
[WhiteElo "2394"]
[BlackElo "2152"]
[PlyCount "157"]
[EventDate "2025.02.17"]
[EventType "team-tourn"]
[EventCountry "CZE"]
[SourceTitle "playchess.com"]
[Source "ChessBase"]
[SourceQuality "1"]
[TimeControl "40/5400+30:1800+30"]

1. d4 {[%emt 0:00:04]} Nf6 {[%emt 0:00:54]} 2. c4 {[%emt 0:01:40]} g6 {[%emt 0:00:14]} 3. Nc3 {[%emt 0:00:06]} Bg7 {[%emt 0:00:18]} 4. e4 {[%emt 0:00:06]} d6 {[%emt 0:00:07]} 5. Be2 {[%emt 0:00:16]} O-O {[%emt 0:00:10]} 6. Be3 {[%emt 0:00:15]} c5 {[%emt 0:05:45]} 7. d5 {[%emt 0:00:40]} e6 {[%emt 0:01:02]} 8. Nf3 {[%emt 0:00:18]} Qe7 {[%emt 0:00:44]} 9. Nd2 {[%emt 0:01:35]} a6 {[%emt 0:02:17]} 10. a4 {[%emt 0:07:33]} a5 {[%emt 0:02:27]} 11. h4 {[%emt 0:09:26]} h5 {[%emt 0:02:42]} 12. Bg5 {[%emt 0:02:53]} Qd7 {[%emt 0:05:40]} 13. Ra3 {[%emt 0:16:41]} Na6 {[%emt 0:02:34]} 14. g4 {[%emt 0:07:50]} Nxg4 {[%emt 0:02:04]} 15. Bxg4 {[%emt 0:00:36]} hxg4 {[%emt 0:00:12]} 16. h5 {[%emt 0:00:49]} gxh5 {[%emt 0:06:59]} 17. Rxh5 {[%emt 0:01:47]} e5 {[%emt 0:00:54]} 18. Bh6 {[%emt 0:18:51]} f6 {[%emt 0:04:18]} 19. Nf1 {[%emt 0:01:07]} Bxh6 {[%emt 0:01:18]} 20. Rxh6 {[%emt 0:00:05]} Qg7 {[%emt 0:00:24]} 21. Qd2 {[%emt 0:03:14]} Nb4 {[%emt 0:00:24]} 22. Rh5 {[%emt 0:06:56]} Bd7 {[%emt 0:05:08]} 23. Nb5 {[%emt 0:01:53]} Ra6 {[%emt 0:15:26]} 24. Ng3 {[%emt 0:03:07]} Kf7 {[%emt 0:00:41]} 25. Nc7 {[%emt 0:08:33]} Rh8 {[%emt 0:00:38]} 26. Rxh8 {[%emt 0:01:19]} Qxh8 {[%emt 0:00:09]} 27. Nxa6 {[%emt 0:00:38]} bxa6 {[%emt 0:00:13]} 28. Ke2 {[%emt 0:01:15]} Qh2 {[%emt 0:04:34]} 29. Rc3 {[%emt 0:01:48]} Ke8 {[%emt 0:02:13]} 30. b3 {[%emt 0:00:22]} Kd8 {[%emt 0:00:19]} 31. Qe1 {[%emt 0:01:29]} Qh6 {[%emt 0:01:52]} 32. Qc1 {[%emt 0:00:08]} Qh4 {[%emt 0:00:56]} 33. Qe3 {[%emt 0:01:27]} Kc7 {[%emt 0:02:27]} 34. Rc1 {[%emt 0:01:07]} Qh2 {[%emt 0:00:31]} 35. Kd2 {[%emt 0:00:15]} Qg2 {[%emt 0:01:43]} 36. Qe2 {[%emt 0:00:44]} Kb6 {[%emt 0:00:51]} 37. Ke3 {[%emt 0:00:39]} Kc7 {[%emt 0:03:00]} 38. Qd1 {[%emt 0:00:27]} Kc8 {[%emt 0:04:44]} 39. Qh1 {[%emt 0:00:22]} Qxh1 {[%emt 0:00:09]} 40. Nxh1 {[%emt 0:00:16]} f5 {[%emt 0:00:11]} 41. exf5 {[%emt 0:31:36]} Bxf5 {[%emt 0:30:14]} 42. Ng3 {[%emt 0:00:00]} Bc2 {[%emt 0:00:00]} 43. Ne4 {[%emt 0:00:00]} Bxb3 {[%emt 0:00:00]} 44. Rh1 {[%emt 0:00:00]} Bxa4 {[%emt 0:00:00]} 45. Rh7 {[%emt 0:00:00]} Bc2 {[%emt 0:00:00]} 46. Nxd6+ {[%emt 0:00:00]} Kb8 {[%emt 0:00:00]} 47. Rb7+ {[%emt 0:00:00]} Ka8 {[%emt 0:00:00]} 48. Rc7 {[%emt 0:00:00]} a4 {[%emt 0:00:00]} 49. Rxc5 {[%emt 0:00:12]} a3 {[%emt 0:00:00]} 50. Ra5 {[%emt 0:00:14]} Bb1 {[%emt 0:00:00]} 51. Kd2 {[%emt 0:01:37]} a2 {[%emt 0:00:00]} 52. Nb5 {[%emt 0:00:15]} Kb7 {[%emt 0:00:00]} 53. Nc3 {[%emt 0:00:22]} Kb6 {[%emt 0:00:00]} 54. Ra4 {[%emt 0:00:21]} a5 {[%emt 0:00:00]} 55. d6 {[%emt 0:00:54]} Kc6 {[%emt 0:01:08]} 56. c5 {[%emt 0:00:05]} Kxc5 {[%emt 0:01:28]} 57. d7 {[%emt 0:00:48]} Nc6 {[%emt 0:00:41]} 58. Nxa2 {[%emt 0:00:57]} Kd6 {[%emt 0:00:26]} 59. Nc3 {[%emt 0:01:28]} Bf5 {[%emt 0:00:26]} 60. Rxa5 {[%emt 0:00:40]} Kxd7 {[%emt 0:00:49]} 61. Ra6 {[%emt 0:00:15]} Kd6 {[%emt 0:02:17]} 62. Ke3 {[%emt 0:00:11]} Kc5 {[%emt 0:01:18]} 63. Ne4+ {[%emt 0:00:21]} Kd5 {[%emt 0:00:18]} 64. Nf6+ {[%emt 0:00:29]} Kc5 {[%emt 0:01:42]} 65. Ra8 {[%emt 0:00:50]} Ne7 {[%emt 0:00:45]} 66. Rd8 {[%emt 0:01:11]} Kc6 {[%emt 0:00:48]} 67. Rd1 {[%emt 0:00:09]} Ng6 {[%emt 0:05:28]} 68. Ne4 {[%emt 0:00:23]} Nf4 {[%emt 0:00:47]} 69. Ng3 {[%emt 0:00:41]} Bg6 {[%emt 0:01:32]} 70. Rd8 {[%emt 0:00:06]} Kc7 {[%emt 0:01:18]} 71. Ra8 {[%emt 0:01:09]} Kd7 {[%emt 0:00:57]} 72. Kd2 {[%emt 0:00:41]} Ke6 {[%emt 0:00:31]} 73. Nf1 {[%emt 0:00:24]} Nh3 {[%emt 0:03:24]} 74. Ke1 {[%emt 0:00:52]} Kf6 {[%emt 0:05:49]} 75. Ne3 {[%emt 0:00:17]} Kg5 {[%emt 0:01:28]} 76. Ra5 {[%emt 0:00:39]} Kf4 {[%emt 0:00:22]} 77. Ng2+ {[%emt 0:00:09]} Ke4 {[%emt 0:03:07]} 78. Ra4+ {[%emt 0:00:04]} Kf5 {[%emt 0:00:15]} 79. Ne3+ {[%emt 0:01:04]} 1-0

[Event "FIDE WSTC Open 50 2025"]
[Site "Prague"]
[Date "2025.02.17"]
[Round "1.22"]
[White "Gacek, Waldemar"]
[Black "Stohl, Igor"]
[Result "1/2-1/2"]
[Annotator "ChessBase"]
[ECO "A05"]
[WhiteElo "2061"]
[BlackElo "2409"]
[PlyCount "30"]
[EventDate "2025.02.17"]
[EventType "team-tourn"]
[EventCountry "CZE"]
[SourceTitle "playchess.com"]
[Source "ChessBase"]
[SourceQuality "1"]
[TimeControl "40/5400+30:1800+30"]

1. Nf3 {[%emt 0:00:04]} Nf6 {[%emt 0:00:19]} 2. c4 {[%emt 0:00:06]} e6 {[%emt 0:00:38]} 3. e3 {[%emt 0:00:21]} d5 {[%emt 0:01:06]} 4. Nc3 {[%emt 0:00:32]} c5 {[%emt 0:00:40]} 5. cxd5 {[%emt 0:00:09]} exd5 {[%emt 0:00:03]} 6. Bb5+ {[%emt 0:01:00]} Bd7 {[%emt 0:01:52]} 7. Bxd7+ {[%emt 0:03:22]} Qxd7 {[%emt 0:02:05]} 8. d4 {[%emt 0:00:08]} Nc6 {[%emt 0:02:17]} 9. O-O {[%emt 0:03:34]} a6 {[%emt 0:04:04]} 10. b3 {[%emt 0:01:51]} cxd4 {[%emt 0:16:57]} 11. Nxd4 {[%emt 0:01:16]} Be7 {[%emt 0:00:37]} 12. Bb2 {[%emt 0:00:18]} O-O {[%emt 0:00:19]} 13. Rc1 {[%emt 0:05:23]} Rac8 {[%emt 0:14:31]} 14. Nxc6 {[%emt 0:23:21]} Rxc6 {[%emt 0:04:09]} 15. Qd3 {[%emt 0:06:38]} Rfc8 {[%emt 0:09:53]} 1/2-1/2

[Event "FIDE WSTC Open 50 2025"]
[Site "Prague"]
[Date "2025.02.17"]
[Round "1.23"]
[White "Lipka, Juraj"]
[Black "Flis, Pawel"]
[Result "1-0"]
[Annotator "ChessBase"]
[ECO "A05"]
[WhiteElo "2348"]
[BlackElo "1966"]
[PlyCount "111"]
[EventDate "2025.02.17"]
[EventType "team-tourn"]
[EventCountry "CZE"]
[SourceTitle "playchess.com"]
[Source "ChessBase"]
[SourceQuality "1"]
[TimeControl "40/5400+30:1800+30"]

1. Nf3 {[%emt 0:00:04]} Nf6 {[%emt 0:00:06]} 2. g3 {[%emt 0:00:16]} g6 {[%emt 0:00:05]} 3. b3 {[%emt 0:01:39]} Bg7 {[%emt 0:00:41]} 4. Bb2 {[%emt 0:00:08]} O-O {[%emt 0:00:07]} 5. Bg2 {[%emt 0:00:35]} c5 {[%emt 0:01:33]} 6. c4 {[%emt 0:03:37]} Nc6 {[%emt 0:00:26]} 7. O-O {[%emt 0:01:36]} d6 {[%emt 0:00:39]} 8. d4 {[%emt 0:01:46]} cxd4 {[%emt 0:01:21]} 9. Nxd4 {[%emt 0:00:18]} Nxd4 {[%emt 0:00:19]} 10. Qxd4 {[%emt 0:02:25]} Qa5 {[%emt 0:14:31]} 11. Nc3 {[%emt 0:16:19]} Be6 {[%emt 0:20:47]} 12. Rac1 {[%emt 0:23:59]} Ng4 {[%emt 0:15:25]} 13. Qd2 {[%emt 0:07:01]} Qh5 {[%emt 0:02:04]} 14. h3 {[%emt 0:04:01]} Nf6 {[%emt 0:08:06]} 15. h4 {[%emt 0:04:08]} Bh6 {[%emt 0:06:17]} 16. e3 {[%emt 0:04:26]} g5 {[%emt 0:06:14]} 17. hxg5 {[%emt 0:05:18]} Ng4 {[%emt 0:03:59]} 18. Rfe1 {[%emt 0:00:38]} Bxg5 {[%emt 0:03:38]} 19. Ne4 {[%emt 0:03:13]} Bh6 {[%emt 0:06:28]} 20. Qe2 {[%emt 0:09:23]} f5 {[%emt 0:04:28]} 21. Nd2 {[%emt 0:01:04]} Qh2+ {[%emt 0:01:47]} 22. Kf1 {[%emt 0:00:05]} Rab8 {[%emt 0:01:18]} 23. Qf3 {[%emt 0:03:27]} Qh5 {[%emt 0:00:27]} 24. Ke2 {[%emt 0:00:25]} Qf7 {[%emt 0:00:49]} 25. Rh1 {[%emt 0:01:06]} Bg7 {[%emt 0:00:28]} 26. Bxg7 {[%emt 0:00:35]} Qxg7 {[%emt 0:00:21]} 27. Qf4 {[%emt 0:00:38]} Qe5 {[%emt 0:00:37]} 28. Qg5+ {[%emt 0:00:55]} Qg7 {[%emt 0:00:13]} 29. Qxg7+ {[%emt 0:00:29]} Kxg7 {[%emt 0:00:01]} 30. Nf3 {[%emt 0:00:25]} b6 {[%emt 0:01:06]} 31. Nd4 {[%emt 0:01:49]} Bd7 {[%emt 0:00:09]} 32. Bd5 {[%emt 0:02:17]} e5 {[%emt 0:00:49]} 33. Nb5 {[%emt 0:01:06]} Bxb5 {[%emt 0:00:38]} 34. cxb5 {[%emt 0:00:06]} Rbc8 {[%emt 0:00:14]} 35. Rc6 {[%emt 0:00:48]} Rxc6 {[%emt 0:00:42]} 36. bxc6 {[%emt 0:00:35]} Rc8 {[%emt 0:00:21]} 37. e4 {[%emt 0:01:25]} fxe4 {[%emt 0:00:13]} 38. Be6 {[%emt 0:00:29]} Rxc6 {[%emt 0:00:17]} 39. Bxg4 {[%emt 0:00:04]} Rc2+ {[%emt 0:00:19]} 40. Ke3 {[%emt 0:00:50]} d5 {[%emt 0:01:20]} 41. Rd1 {[%emt 0:03:48]} Rc3+ {[%emt 0:06:28]} 42. Kd2 {[%emt 0:13:37]} d4 {[%emt 0:11:24]} 43. Re1 {[%emt 0:02:40]} Rd3+ {[%emt 0:05:05]} 44. Kc2 {[%emt 0:00:51]} Rc3+ {[%emt 0:02:12]} 45. Kb2 {[%emt 0:01:20]} Rd3 {[%emt 0:04:35]} 46. Rd1 {[%emt 0:01:39]} Rc3 {[%emt 0:00:41]} 47. Rc1 {[%emt 0:01:40]} Rd3 {[%emt 0:00:21]} 48. Rc7+ {[%emt 0:01:09]} Kf6 {[%emt 0:01:21]} 49. Kc2 {[%emt 0:00:28]} a5 {[%emt 0:02:48]} 50. Be2 {[%emt 0:00:18]} Rc3+ {[%emt 0:00:27]} 51. Rxc3 {[%emt 0:00:05]} dxc3 {[%emt 0:00:03]} 52. Kxc3 {[%emt 0:00:08]} Kf5 {[%emt 0:00:41]} 53. Kd2 {[%emt 0:00:11]} Ke6 {[%emt 0:00:52]} 54. Ke3 {[%emt 0:00:37]} Kd5 {[%emt 0:00:13]} 55. Bc4+ {[%emt 0:00:17]} Kc5 {[%emt 0:00:05]} 56. a4 {[%emt 0:00:17]} 1-0

[Event "FIDE WSTC Open 50 2025"]
[Site "Prague"]
[Date "2025.02.17"]
[Round "1.24"]
[White "Zielinski, Olgierd"]
[Black "Motuz, Karol"]
[Result "1/2-1/2"]
[Annotator "ChessBase"]
[ECO "C52"]
[WhiteElo "1897"]
[BlackElo "2293"]
[PlyCount "31"]
[EventDate "2025.02.17"]
[EventType "team-tourn"]
[EventCountry "CZE"]
[SourceTitle "playchess.com"]
[Source "ChessBase"]
[SourceQuality "1"]
[TimeControl "40/5400+30:1800+30"]

1. e4 {[%emt 0:00:05]} e5 2. Nf3 {[%emt 0:00:23]} Nc6 {[%emt 0:00:18]} 3. Bc4 {[%emt 0:00:57]} Bc5 {[%emt 0:00:47]} 4. b4 {[%emt 0:01:51]} Bxb4 {[%emt 0:00:54]} 5. c3 {[%emt 0:00:13]} Ba5 {[%emt 0:01:36]} 6. d4 {[%emt 0:01:11]} d6 {[%emt 0:02:54]} 7. Qb3 {[%emt 0:01:41]} Qd7 {[%emt 0:02:38]} 8. O-O {[%emt 0:01:30]} Bb6 {[%emt 0:08:10]} 9. Nbd2 {[%emt 0:02:41]} Na5 {[%emt 0:09:48]} 10. Qc2 {[%emt 0:00:06]} Nxc4 {[%emt 0:00:19]} 11. Nxc4 {[%emt 0:00:06]} f6 {[%emt 0:02:28]} 12. a4 {[%emt 0:10:48]} Qf7 {[%emt 0:07:46]} 13. Qd3 {[%emt 0:03:17]} Be6 {[%emt 0:03:48]} 14. Nfd2 {[%emt 0:01:17]} Bxc4 {[%emt 0:25:48]} 15. Nxc4 {[%emt 0:00:10]} d5 {[%emt 0:01:31]} 16. Nxb6 {[%emt 0:03:24]} 1/2-1/2